Workbook

Sheet Вентиляция
A1: № п.п. | B1: Наименование | C1: Тип/ Марка (Код) | D1: Завод изготовитель | E1: Ед. изм. | F1: Кол-во | G1: А | H1: В | I1: S | J1: Периметр | K1: Материалы для монтажа / Расходные материалы | V1: Раздел | W1: Группа
K2: =SUM(K4:K37) -> 7369 | L2: =SUM(L4:L37) -> 7369 | M2: =SUM(M4:M37) ->  | N2: =SUM(N4:N37) -> 780 | O2: =SUM(O4:O37) -> 1862 | P2: =SUM(P4:P37) -> 14717 | Q2: =SUM(Q4:Q37) ->  | R2: =SUM(R4:R37) -> 16600 | S2: =SUM(S4:S37) ->  | T2: =SUM(T4:T37) ->  | U2: =SUM(U4:U37) -> 
K3: Болт (шт.) | L3: Гайка (шт.) | M3: Траверса (п.м.) | N3: Шпилька (п.м.) | O3: Анкер (шт.) | P3: Скоба (шт.) | Q3: Уплотнитель (п.м.) | R3: Шайба (шт.) | S3: Саморез (рул.) | T3: Скотч (шт.) | U3: Гвоздь (шт.)
B4: Воздуховод круглого сечения из оцинкованной стали высотой от 3 до 5 м, толщиной 0,5 мм | G4: =iNumber(B4,1) -> , | H4: =iNumber(B4,2) -> 0,5 | I4: =IF(G4<>"-",(G4+H4)*2,PI()*H4)*F4/1000 ->  | J4: =IF(G4<>"-",(G4+H4)*2,H4) ->  | K4: =ROUNDUP(F4*4/1.25,0) -> 0 | L4: =ROUNDUP(F4/1.25*4,0) -> 0 | M4: =IF(G4<>"-",G4*1.25/1000*F4/2.5*2,H4*1.25/1000*F4/2.5*2) ->  | N4: =ROUNDUP((H4*1.2/1000+0.15)*2*F4/2.5,0) -> 0 | O4: =EVEN(F4/2.5*2) -> 0 | P4: =ROUND((IF(500<G4,2,0)+IF(500<H4,2,0)+IF(800<G4,2,0)+IF(800<H4,2,0))*F4/1.25,0) -> 0 | Q4: =M4 ->  | R4: =K4+L4+O4 -> 0 | S4: =ROUNDUP((G4/100+H4/100)*F4/4,0) ->  | T4: =ROUNDUP(((G4+H4)*2*1.21*F4/1000)/13,0) ->  | U4: =ROUNDUP(I4*15,0) ->  | V4: Вентиляция | W4: Монтаж воздуховодов б=0,9 мм - б= 1,0 мм
B5: ф100 | F5: 267 | G5: =iNumber(B5,1) -> - | H5: =iNumber(B5,2) -> 100 | I5: =IF(G5<>"-",(G5+H5)*2,PI()*H5)*F5/1000 -> 83.88052385 | J5: =IF(G5<>"-",(G5+H5)*2,H5) -> 100 | K5: =ROUNDUP(F5*4/1.25,0) -> 855 | L5: =ROUNDUP(F5/1.25*4,0) -> 855 | M5: =IF(G5<>"-",G5*1.25/1000*F5/2.5*2,H5*1.25/1000*F5/2.5*2) -> 26.7 | N5: =ROUNDUP((H5*1.2/1000+0.15)*2*F5/2.5,0) -> 58 | O5: =EVEN(F5/2.5*2) -> 214 | P5: =ROUND((IF(500<G5,2,0)+IF(500<H5,2,0)+IF(800<G5,2,0)+IF(800<H5,2,0))*F5/1.25,0) -> 1709 | Q5: =M5 -> 26.7 | R5: =K5+L5+O5 -> 1924 | S5: =ROUNDUP((G5/100+H5/100)*F5/4,0) ->  | T5: =ROUNDUP(((G5+H5)*2*1.21*F5/1000)/13,0) ->  | U5: =ROUNDUP(I5*15,0) -> 1259
B6: ф125 | F6: 50 | G6: - | H6: 125 | I6: =IF(G6<>"-",(G6+H6)*2,PI()*H6)*F6/1000 -> 19.63495408 | J6: =IF(G6<>"-",(G6+H6)*2,H6) -> 125 | K6: =ROUNDUP(F6*4/1.25,0) -> 160 | L6: =ROUNDUP(F6/1.25*4,0) -> 160 | M6: =IF(G6<>"-",G6*1.25/1000*F6/2.5*2,H6*1.25/1000*F6/2.5*2) -> 6.25 | N6: =ROUNDUP((H6*1.2/1000+0.15)*2*F6/2.5,0) -> 12 | O6: =EVEN(F6/2.5*2) -> 40 | P6: =ROUND((IF(500<G6,2,0)+IF(500<H6,2,0)+IF(800<G6,2,0)+IF(800<H6,2,0))*F6/1.25,0) -> 320 | Q6: =M6 -> 6.25 | R6: =K6+L6+O6 -> 360 | S6: =ROUNDUP((G6/100+H6/100)*F6/4,0) ->  | T6: =ROUNDUP(((G6+H6)*2*1.21*F6/1000)/13,0) ->  | U6: =ROUNDUP(I6*15,0) -> 295
B7: ф140 | F7: 20 | G7: =iNumber(B7,1) -> - | H7: =iNumber(B7,2) -> 140 | I7: 8.79645943 | J7: 140 | K7: 64 | L7: 64 | M7: 2.8 | N7: 6 | O7: 16 | P7: 128 | Q7: 2.8 | R7: 144 | U7: 132
B8: ф160 | F8: 160 | G8: - | H8: 160 | I8: 80.42477193 | J8: 160 | K8: 512 | L8: 512 | M8: 25.6 | N8: 44 | O8: 128 | P8: 1024 | Q8: 25.6 | R8: 1152 | U8: 1207
B9: Воздуховод круглого сечения из оцинкованной стали высотой от 3 до 5 м, толщиной 0,6 мм | G9: , | H9: 0,6 | K9: 0 | L9: 0 | N9: 0 | O9: 0 | P9: 0 | R9: 0
B10: ф180 | F10: 34 | G10: - | H10: 180 | I10: 19.22654704 | J10: 180 | K10: 109 | L10: 109 | M10: 6.12 | N10: 10 | O10: 28 | P10: 218 | Q10: 6.12 | R10: 246 | U10: 289
B11: ф200 | F11: 196 | G11: - | H11: 200 | I11: 123.150432 | J11: 200 | K11: 628 | L11: 628 | M11: 39.2 | N11: 62 | O11: 158 | P11: 1254 | Q11: 39.2 | R11: 1414 | U11: 1848
B12: ф225 | F12: 16 | G12: - | H12: 225 | I12: 11.30973355 | J12: 225 | K12: 52 | L12: 52 | M12: 3.6 | N12: 6 | O12: 14 | P12: 102 | Q12: 3.6 | R12: 118 | U12: 170
B13: ф250 | F13: 148 | G13: - | H13: 250 | I13: 116.2389282 | J13: 250 | K13: 474 | L13: 474 | M13: 37 | N13: 54 | O13: 120 | P13: 947 | Q13: 37 | R13: 1068 | U13: 1744
B14: ф280 | F14: 18 | G14: - | H14: 280 | I14: 15.83362697 | J14: 280 | K14: 58 | L14: 58 | M14: 5.04 | N14: 7 | O14: 16 | P14: 115 | Q14: 5.04 | R14: 132 | U14: 238
B15: Воздуховод круглого сечения из оцинкованной стали высотой от 3 до 5 м, толщиной 0,7 мм | G15: , | H15: 0,7 | K15: 0 | L15: 0 | N15: 0 | O15: 0 | P15: 0 | R15: 0
B16: ф315 | F16: 75 | G16: - | H16: 315 | I16: 74.22012644 | J16: 315 | K16: 240 | L16: 240 | M16: 23.625 | N16: 32 | O16: 60 | P16: 480 | Q16: 23.625 | R16: 540 | U16: 1114
B17: ф355 | F17: 13 | G17: - | H17: 355 | I17: 14.4984501 | J17: 355 | K17: 42 | L17: 42 | M17: 4.615 | N17: 6 | O17: 12 | P17: 83 | Q17: 4.615 | R17: 96 | U17: 218
B18: ф400 | F18: 17 | G18: - | H18: 400 | I18: 21.36283004 | J18: 400 | K18: 55 | L18: 55 | M18: 6.8 | N18: 9 | O18: 14 | P18: 109 | Q18: 6.8 | R18: 124 | U18: 321
B19: Воздуховод прямоугольного сечения из оцинкованной стали высотой от 3 до 5 м, толщиной 0,5 мм | G19: , | H19: 0,5 | K19: 0 | L19: 0 | N19: 0 | O19: 0 | P19: 0 | R19: 0
B20: 100х100 | F20: 57 | G20: 100 | H20: 100 | I20: 22.8 | J20: 400 | K20: 183 | L20: 183 | M20: 5.7 | N20: 13 | O20: 46 | P20: 365 | Q20: 5.7 | R20: 412 | S20: 29 | T20: 3 | U20: 342
B21: 100x150 | F21: 128 | G21: 100 | H21: 150 | I21: 64 | J21: 500 | K21: 410 | L21: 410 | M21: 12.8 | N21: 34 | O21: 104 | P21: 819 | Q21: 12.8 | R21: 924 | S21: 80 | T21: 6 | U21: 960
B22: 100x200 | F22: 88 | G22: 100 | H22: 200 | I22: 52.8 | J22: 600 | K22: 282 | L22: 282 | M22: 8.8 | N22: 28 | O22: 72 | P22: 563 | Q22: 8.8 | R22: 636 | S22: 66 | T22: 5 | U22: 792
B23: 100x300 | F23: 28.7 | G23: 100 | H23: 300 | I23: 22.96 | J23: 800 | K23: 92 | L23: 92 | M23: 2.87 | N23: 12 | O23: 24 | P23: 184 | Q23: 2.87 | R23: 208 | S23: 29 | T23: 3 | U23: 345
B24: 150x150 | F24: 155 | G24: 150 | H24: 150 | I24: 93 | J24: 600 | K24: 496 | L24: 496 | M24: 23.25 | N24: 41 | O24: 124 | P24: 992 | Q24: 23.25 | R24: 1116 | S24: 117 | T24: 9 | U24: 1395
B25: 150x200 | F25: 47 | G25: 150 | H25: 200 | I25: 32.9 | J25: 700 | K25: 151 | L25: 151 | M25: 7.05 | N25: 15 | O25: 38 | P25: 301 | Q25: 7.05 | R25: 340 | S25: 42 | T25: 4 | U25: 494
B26: 150x250 | F26: 66 | G26: 150 | H26: 250 | I26: 52.8 | J26: 800 | K26: 212 | L26: 212 | M26: 9.9 | N26: 24 | O26: 54 | P26: 422 | Q26: 9.9 | R26: 478 | S26: 66 | T26: 5 | U26: 792
B27: 150x300 | F27: 324 | G27: 150 | H27: 300 | I27: 291.6 | J27: 900 | K27: 1037 | L27: 1037 | M27: 48.6 | N27: 133 | O27: 260 | P27: 2074 | Q27: 48.6 | R27: 2334 | S27: 365 | T27: 28 | U27: 4374
B28: 150x350 | F28: 10 | G28: 150 | H28: 350 | I28: 10 | J28: 1000 | K28: 32 | L28: 32 | M28: 1.5 | N28: 5 | O28: 8 | P28: 64 | Q28: 1.5 | R28: 72 | S28: 13 | T28: 1 | U28: 150
B29: 200x200 | F29: 20 | G29: 200 | H29: 200 | I29: 16 | J29: 800 | K29: 64 | L29: 64 | M29: 4 | N29: 7 | O29: 16 | P29: 128 | Q29: 4 | R29: 144 | S29: 20 | T29: 2 | U29: 240
B30: 200x250 | F30: 85 | G30: 200 | H30: 250 | I30: 76.5 | J30: 900 | K30: 272 | L30: 272 | M30: 17 | N30: 31 | O30: 68 | P30: 544 | Q30: 17 | R30: 612 | S30: 96 | T30: 8 | U30: 1148
B31: 200x300 | F31: 30 | G31: 200 | H31: 300 | I31: 30 | J31: 1000 | K31: 96 | L31: 96 | M31: 6 | N31: 13 | O31: 24 | P31: 192 | Q31: 6 | R31: 216 | S31: 38 | T31: 3 | U31: 450
B32: 200x400 | F32: 102 | G32: 200 | H32: 400 | I32: 122.4 | J32: 1200 | K32: 327 | L32: 327 | M32: 20.4 | N32: 52 | O32: 82 | P32: 653 | Q32: 20.4 | R32: 736 | S32: 153 | T32: 12 | U32: 1836
B33: 250x250 | F33: 48 | G33: 250 | H33: 250 | I33: 48 | J33: 1000 | K33: 154 | L33: 154 | M33: 12 | N33: 18 | O33: 40 | P33: 307 | Q33: 12 | R33: 348 | S33: 60 | T33: 5 | U33: 720
B34: 250x300 | F34: 21 | G34: 250 | H34: 300 | I34: 23.1 | J34: 1100 | K34: 68 | L34: 68 | M34: 5.25 | N34: 9 | O34: 18 | P34: 134 | Q34: 5.25 | R34: 154 | S34: 29 | T34: 3 | U34: 347
B35: 250x350 | F35: 35 | G35: 250 | H35: 350 | I35: 42 | J35: 1200 | K35: 112 | L35: 112 | M35: 8.75 | N35: 16 | O35: 28 | P35: 224 | Q35: 8.75 | R35: 252 | S35: 53 | T35: 4 | U35: 630
B36: 250x400 | F36: 28 | G36: 250 | H36: 400 | I36: 36.4 | J36: 1300 | K36: 90 | L36: 90 | M36: 7 | N36: 15 | O36: 24 | P36: 179 | Q36: 7 | R36: 204 | S36: 46 | T36: 4 | U36: 546
B37: 250x500 | F37: 13 | G37: 250 | H37: 500 | I37: 19.5 | J37: 1500 | K37: 42 | L37: 42 | M37: 3.25 | N37: 8 | O37: 12 | P37: 83 | Q37: 3.25 | R37: 96 | S37: 25 | T37: 2 | U37: 293

Sheet Служебная
A1: Перечень разделов | B1: Раздел | C1: Группа | D1: Контр.показатель | E1: Себестоимость ед. работ | F1: Коэфф. (%) | G1: Стоимость ед. работ для Заказчика
A4: Вентиляция | B4: Вентиляция | C4: Монтаж воздуховодов б=0,5 мм - б= 0,7 мм | D4: 1500 | E4: 300 | F4: 1.5 | G4: =F4*E4 -> 450
A5: Отопление | B5: Вентиляция | C5: Монтаж воздуховодов б=0,9 мм - б= 1,0 мм | D5: 2500 | E5: 320 | F5: 1.5 | G5: =F5*E5 -> 480
A6: ВК | B6: Вентиляция | C6: Монтаж воздуховодов б=1,2 мм - б= 1,5 мм | D6: 4000 | E6: 480 | F6: 1.3 | G6: =F6*E6 -> 624
A7: Электрика | B7: Вентиляция | C7: Монтаж ОГЗ
A8: Автоматика | B8: Вентиляция | C8: Монтаж решетки наружней | D8: сечение / периметр
B9: Вентиляция | C9: Монтаж решетки нерегулируемой
B10: Вентиляция | C10: Монтаж решетки регулируемой
B11: Вентиляция | C11: Монтаж решетки с КСД
B12: Вентиляция | C12: Монтаж решетки с клапаном
B13: Вентиляция | C13: Монтаж диффузора
B14: Отопление | C14: Монтаж трубопроводов стальных | D14: 15
B15: Отопление | C15: Монтаж трубопроводов стальных | D15: 20
B16: Отопление | C16: Монтаж трубопроводов стальных | D16: 25
B17: Отопление | C17: Монтаж трубопроводов стальных | D17: 32
B18: Отопление | C18: Монтаж трубопроводов стальных | D18: 40
B19: Отопление | C19: Монтаж трубопроводов стальных | D19: 57
B20: Отопление | C20: Монтаж трубопроводов стальных | D20: 63
B21: Отопление | C21: Монтаж трубопроводов стальных | D21: 76
B22: Отопление | C22: Монтаж трубопроводов стальных | D22: 89
B23: Отопление | C23: Монтаж трубопроводов стальных | D23: 108
B24: Отопление | C24: Монтаж трубопроводов стальных | D24: 133
B25: Отопление | C25: Монтаж трубопроводов стальных | D25: 159
B26: Отопление | C26: Монтаж трубопроводов стальных | D26: 219
B27: Отопление | C27: Монтаж трубопроводов стальных | D27: 273
A47: Вентиляция
A48: Отопление
A49: ВК
A50: Электрика
A51: Автоматика
A76: Вентиляция
A77: Отопление
A78: ВК
A79: Электрика
A80: Автоматика
